bitfinex/quotes_BTCUSD_20250718
["timestamp","ask_amount","ask_price","bid_price","bid_amount"]
[1752837717985,4e-05,118870.0,118860.0,0.71506083]
[1752837718211,0.14397198,118870.0,118860.0,0.71295752]
[1752837718474,0.14397191,118870.0,118860.0,0.71295752]
[1752837718683,0.13556,118870.0,118860.0,0.71095752]
[1752837718896,0.13556,118870.0,118860.0,0.71495752]
[1752837719312,0.13556,118870.0,118860.0,0.71095752]
[1752837719584,0.13556,118870.0,118860.0,0.70995752]
[1752837719815,4e-05,118870.0,118860.0,0.71795752]
[1752837720050,0.13552,118870.0,118860.0,0.71795752]
[1752837720301,0.14393198,118870.0,118860.0,0.25519501]
[1752837720535,0.16075629,118870.0,118860.0,0.25519501]
[1752837720763,0.16075622,118870.0,118860.0,0.25519501]
[1752837721427,0.16916862,118870.0,118860.0,0.25519501]
[1752837721668,0.15234403,118870.0,118860.0,0.25519501]
[1752837722534,0.16075629,118870.0,118860.0,0.25519501]
[1752837722744,0.81625755,118870.0,118860.0,0.06169092]
[1752837722957,0.35349504,118870.0,118860.0,0.04715007]
[1752837723161,0.81625755,118870.0,118860.0,0.04715007]
[1752837723349,0.81625755,118870.0,118860.0,0.06169092]
[1752837723602,0.35349504,118870.0,118860.0,0.05769092]
[1752837723839,0.35349504,118870.0,118860.0,0.05869092]
[1752837724026,0.32059569,118870.0,118860.0,0.05869092]
[1752837724691,0.32059569,118870.0,118860.0,0.05469092]
[1752837725171,0.32059569,118870.0,118860.0,0.05569092]
[1752837725384,0.7833582,118870.0,118860.0,0.05569092]
[1752837727525,0.32059569,118870.0,118860.0,0.05569092]
[1752837727745,0.7833582,118870.0,118860.0,0.05569092]
[1752837728440,0.32059569,118870.0,118860.0,0.05569092]
[1752837728696,0.7833582,118870.0,118860.0,0.05569092]
[1752837730615,0.32059569,118870.0,118860.0,0.08059473]
[1752837730823,0.7832782,118870.0,118860.0,0.08059473]
[1752837731590,0.32051569,118870.0,118860.0,0.08059473]
[1752837731816,0.7832782,118870.0,118860.0,0.08059473]
[1752837733177,0.32051569,118870.0,118860.0,0.08059473]
[1752837733378,0.7832782,118870.0,118860.0,0.08059473]
[1752837737919,0.32051569,118870.0,118860.0,0.08059473]
[1752837738129,0.7832782,118870.0,118860.0,0.08059473]
[1752837739545,0.32051569,118870.0,118860.0,0.08059473]
[1752837739760,0.7831182,118870.0,118860.0,0.08059473]
[1752837739982,0.32035569,118870.0,118860.0,0.08059473]
[1752837740188,0.7831182,118870.0,118860.0,0.08059473]
[1752837740629,0.32035569,118870.0,118860.0,0.08059473]
[1752837740843,0.7831182,118870.0,118860.0,0.08059473]
[1752837743372,0.32035569,118870.0,118860.0,0.08059473]
[1752837743823,0.7831182,118870.0,118860.0,0.08059473]
[1752837745799,0.7852082,118870.0,118860.0,0.04959473]
[1752837746015,0.32035569,118870.0,118860.0,0.04959473]
[1752837746225,0.7831182,118870.0,118860.0,0.04959473]
[1752837746453,0.34254342,118870.0,118860.0,0.07979473]
[1752837746706,0.80530593,118870.0,118860.0,0.07979473]
[1752837746931,0.32035569,118870.0,118860.0,0.07979473]
[1752837747185,0.7831182,118870.0,118860.0,0.07979473]
[1752837748570,0.32035569,118870.0,118860.0,0.07979473]
[1752837748793,0.7831182,118870.0,118860.0,0.07979473]
[1752837749257,0.32035569,118870.0,118860.0,0.04959473]
[1752837749478,0.7831182,118870.0,118860.0,0.04959473]
[1752837750365,0.32035569,118870.0,118860.0,0.08059473]
[1752837750598,0.7831182,118870.0,118860.0,0.08059473]
[1752837752533,0.32035569,118870.0,118860.0,0.08059473]
[1752837753035,0.7831182,118870.0,118860.0,0.08059473]
[1752837753268,0.32035569,118870.0,118860.0,0.08059473]
[1752837753766,0.7831182,118870.0,118860.0,0.08059473]
[1752837754230,0.32035569,118870.0,118860.0,0.08059473]
[1752837754439,0.7831182,118870.0,118860.0,0.08059473]
[1752837756144,0.32035569,118870.0,118860.0,0.08059473]
[1752837756369,0.7831182,118870.0,118860.0,0.08059473]
[1752837758642,0.32035569,118870.0,118860.0,0.08059473]
[1752837758862,0.1356,118870.0,118860.0,0.73686133]
[1752837759072,0.1356,118870.0,118860.0,1.07686133]
[1752837759073,0.13548,118870.0,118860.0,1.07686133]
[1752837759527,0.14389205,118870.0,118860.0,0.61409889]
[1752837759751,0.13548,118870.0,118860.0,0.62151165]
[1752837759955,0.13548,118870.0,118860.0,0.62551165]
[1752837760170,0.13548,118870.0,118860.0,0.62451165]
[1752837760369,0.14389198,118870.0,118860.0,0.62451165]
[1752837760584,0.15230417,118870.0,118860.0,0.62751165]
[1752837760793,0.1607165,118870.0,118860.0,0.59385991]
[1752837761009,0.1523041,118870.0,118860.0,0.6190991]
[1752837761868,0.14389198,118870.0,118860.0,0.62751207]
[1752837762491,0.15230403,118870.0,118860.0,0.62751207]
[1752837763124,0.1523041,118870.0,118860.0,0.62751207]
[1752837763297,0.14389198,118870.0,118860.0,0.62751207]
[1752837763505,0.1523041,118870.0,118860.0,0.62751207]
[1752837763717,0.15230403,118870.0,118860.0,0.62751207]
[1752837763956,0.16071622,118870.0,118860.0,0.62751207]
[1752837764273,0.16071622,118870.0,118860.0,0.61068634]
[1752837764479,0.16912855,118870.0,118860.0,0.62751242]
[1752837764693,0.16071622,118870.0,118860.0,0.63592525]
[1752837765102,0.16071622,118870.0,118860.0,0.63592476]
[1752837765241,0.16071622,118870.0,118860.0,0.627512]
[1752837765447,0.15230403,118870.0,118860.0,0.627512]
[1752837765644,0.16071629,118870.0,118860.0,0.627512]
[1752837766273,0.16071629,118870.0,118860.0,0.63592476]
[1752837766509,0.16071622,118870.0,118860.0,0.63592476]
[1752837766646,0.15230403,118870.0,118860.0,0.63592476]
[1752837766905,0.16071615,118870.0,118860.0,0.63592476]
[1752837767368,0.16071615,118870.0,118860.0,0.61102095]
[1752837767764,0.14389198,118870.0,118860.0,0.61102095]
[1752837768249,0.15230403,118870.0,118860.0,0.61102095]
[1752837768391,0.16071622,118870.0,118860.0,0.61102095]
[1752837768805,0.14389198,118870.0,118860.0,0.61102095]
[1752837769007,0.1523041,118870.0,118860.0,0.61102095]
[1752837769215,0.16071636,118870.0,118860.0,0.61102095]
[1752837769421,0.16912876,118870.0,118860.0,0.61102095]
[1752837769634,0.1523041,118870.0,118860.0,0.61102095]
[1752837770036,0.16071629,118870.0,118860.0,0.61102095]
[1752837770242,0.16912855,118870.0,118860.0,0.61102095]
[1752837771294,0.17754088,118870.0,118860.0,0.61102095]
[1752837771648,0.1775413,118870.0,118860.0,0.61102095]
[1752837772670,0.1775413,118870.0,118860.0,0.6361122]
[1752837773671,0.17754166,118870.0,118860.0,0.62769944]
[1752837773900,0.16912918,118870.0,118860.0,0.6361122]
[1752837774107,0.17754166,118870.0,118860.0,0.63611234]
[1752837774540,0.16912918,118870.0,118860.0,0.63611192]
[1752837774673,0.16071678,118870.0,118860.0,0.63611192]
[1752837775655,0.15230445,118870.0,118860.0,0.63611192]
[1752837775878,0.15230417,118870.0,118860.0,0.63611192]
[1752837776441,0.14389198,118870.0,118860.0,0.63611192]
[1752837776645,0.16071629,118870.0,118860.0,0.63611192]
[1752837777017,0.16071629,118870.0,118860.0,1.09887443]
[1752837777226,0.16071629,118870.0,118860.0,0.63611192]
[1752837777443,0.16912869,118870.0,118860.0,0.63611192]
[1752837777657,0.17754102,118870.0,118860.0,0.60511192]
[1752837777903,0.17754102,118870.0,118860.0,0.63741192]
[1752837778279,0.16071622,118870.0,118860.0,0.63741192]
[1752837778520,0.16912848,118870.0,118860.0,1.10017443]
[1752837778724,0.16071622,118870.0,118860.0,1.10017443]
[1752837778919,0.16912862,118870.0,118860.0,0.63741192]
[1752837779134,0.16912862,118870.0,118860.0,1.10017443]
[1752837779135,0.16912848,118870.0,118860.0,1.10017443]
[1752837779325,0.16071622,118870.0,118860.0,1.10017443]
[1752837779842,0.16071622,118870.0,118860.0,0.63741192]
[1752837780376,0.16912855,118870.0,118860.0,0.63741192]
[1752837780587,0.16071622,118870.0,118860.0,0.63741192]
[1752837781302,0.17754103,118870.0,118860.0,0.62899916]
[1752837781723,0.17754095,118870.0,118860.0,0.6368696]
[1752837781934,0.17754095,118870.0,118860.0,0.63632272]
[1752837781935,0.16912855,118870.0,118860.0,0.63632272]
[1752837782212,0.16071622,118870.0,118860.0,0.63632272]
[1752837782426,0.16071615,118870.0,118860.0,0.63612433]
[1752837782640,0.15230403,118870.0,118860.0,0.63612433]
[1752837783253,0.16071615,118870.0,118860.0,0.63612433]
[1752837783892,0.13548,118870.0,118860.0,0.63612433]
[1752837784093,0.13548,118870.0,118860.0,1.09888684]
[1752837785528,0.13548,118870.0,118860.0,0.63612433]
[1752837785737,0.14389191,118870.0,118860.0,0.63612433]
[1752837785956,0.14389191,118870.0,118860.0,1.09888684]
[1752837786869,0.16071608,118870.0,118860.0,0.63612433]
[1752837787096,0.15230389,118870.0,118860.0,0.63612433]
[1752837788273,0.15230389,118870.0,118860.0,0.63516749]
[1752837788486,0.14389191,118870.0,118860.0,0.63516749]
[1752837789386,0.15230403,118870.0,118860.0,0.63516749]
[1752837789658,0.15230396,118870.0,118860.0,0.63516749]
[1752837789933,4e-05,118870.0,118860.0,1.18344028]
[1752837790394,4e-05,118870.0,118860.0,1.31784028]
[1752837790831,4e-05,118870.0,118860.0,1.31484028]
[1752837791699,4e-05,118870.0,118860.0,1.32084028]
[1752837792564,4e-05,118870.0,118860.0,0.85807777]
[1752837792760,4e-05,118870.0,118860.0,1.32084028]
[1752837792982,4e-05,118870.0,118860.0,0.85807777]
[1752837793213,4e-05,118870.0,118860.0,1.32084028]
[1752837796025,4e-05,118870.0,118860.0,0.85807777]
[1752837796192,4e-05,118870.0,118860.0,1.32084028]
[1752837796959,0.0292256,118890.0,118880.0,0.2080126]
[1752837797172,0.0292256,118890.0,118880.0,0.3442626]
[1752837797390,0.0312256,118890.0,118880.0,0.35267394]
[1752837797653,0.02281447,118890.0,118880.0,0.35267394]
[1752837797895,0.00841064,118890.0,118880.0,0.35267394]
[1752837798112,0.38646048,118900.0,118890.0,0.20799633]
[1752837798353,0.40446048,118900.0,118890.0,0.20163562]
[1752837798587,0.40446048,118900.0,118890.0,0.2100464]
[1752837798801,0.40446048,118900.0,118890.0,0.21845711]
[1752837799029,0.16914021,118900.0,118890.0,0.22686775]
[1752837799264,0.16913979,118900.0,118890.0,0.21845704]
[1752837799487,0.23196509,118910.0,118900.0,0.19957005]
[1752837799716,0.17185894,118910.0,118900.0,0.20798012]
[1752837799929,0.17185894,118910.0,118900.0,0.21844012]
[1752837799930,0.18685894,118910.0,118900.0,0.21844012]
[1752837800140,0.17185894,118910.0,118900.0,0.21003012]
[1752837800359,0.17185894,118910.0,118900.0,0.20162005]
[1752837800576,0.18026859,118910.0,118900.0,0.20162005]
[1752837800788,0.18076618,118910.0,118900.0,0.21003019]
[1752837801005,0.35737033,118910.0,118900.0,0.21844026]
[1752837801389,0.15635653,118910.0,118900.0,0.22685019]
[1752837801645,0.15735653,118910.0,118900.0,0.22685019]
[1752837801825,0.1657656,118910.0,118900.0,0.22685019]
[1752837802030,0.17317518,118910.0,118900.0,0.22685026]
[1752837802231,0.18158483,118910.0,118900.0,0.22685026]
[1752837802436,0.17317518,118910.0,118900.0,0.22684977]
[1752837802644,0.17321518,118910.0,118900.0,0.22784977]
[1752837803058,0.16480568,118910.0,118900.0,0.22784977]
[1752837803267,0.16480568,118910.0,118900.0,0.21943984]
[1752837803476,0.16480568,118910.0,118900.0,0.22784977]
[1752837804138,0.1563961,118910.0,118900.0,0.22784977]
[1752837804366,0.00353759,118910.0,118900.0,1.11922256]
[1752837804577,0.00353759,118910.0,118900.0,1.15172256]
[1752837804798,0.00353759,118910.0,118900.0,0.68896005]
[1752837805259,0.00269662,118910.0,118900.0,0.65646005]
[1752837805461,0.01110577,118910.0,118900.0,0.65646005]
[1752837807851,0.01110577,118910.0,118900.0,0.65336005]
[1752837808058,0.01951499,118910.0,118900.0,0.65336005]
[1752837808701,0.01110577,118910.0,118900.0,0.65336005]
[1752837808917,0.01951506,118910.0,118900.0,0.65336005]
[1752837809150,0.00269662,118910.0,118900.0,0.65336005]
[1752837810018,0.00269662,118910.0,118900.0,0.65646005]
[1752837812114,0.00269662,118910.0,118900.0,0.68846005]
[1752837812562,0.00269662,118910.0,118900.0,1.15122256]
[1752837812839,0.00269662,118910.0,118900.0,0.68846005]
[1752837813731,0.03379662,118910.0,118900.0,0.65336005]
[1752837813953,0.03584662,118910.0,118900.0,0.65336005]
[1752837814175,0.02084662,118910.0,118900.0,0.65336005]
[1752837814390,0.00269662,118910.0,118900.0,0.65646005]
[1752837814817,0.00269662,118910.0,118900.0,0.79022005]
[1752837815024,0.01110577,118910.0,118900.0,0.79022005]
[1752837815668,0.01951506,118910.0,118900.0,0.79022005]
[1752837816075,0.02792449,118910.0,118900.0,0.79022005]
[1752837816281,0.02792442,118910.0,118900.0,0.79022005]
[1752837817656,0.01951506,118910.0,118900.0,0.79022005]
[1752837818500,0.02792449,118910.0,118900.0,0.79022005]
[1752837818707,0.03633399,118910.0,118900.0,0.79022005]
[1752837818927,0.02792449,118910.0,118900.0,0.79022005]
[1752837819136,0.02792442,118910.0,118900.0,0.79022005]
[1752837819792,0.02792449,118910.0,118900.0,0.79022005]
[1752837820682,0.03633407,118910.0,118900.0,0.79022005]
[1752837821046,0.2045285,118910.0,118900.0,0.79022005]
[1752837821256,0.04474372,118910.0,118900.0,0.79022005]
[1752837821517,0.03633407,118910.0,118900.0,0.79022005]
[1752837822121,0.21293815,118910.0,118900.0,0.79022005]
[1752837822331,0.84040369,118910.0,118900.0,0.001]
[1752837822540,0.88836407,118910.0,118900.0,0.001]
[1752837822681,0.91819786,118910.0,118900.0,0.001]
[1752837822896,0.45543535,118910.0,118900.0,0.001]
[1752837823117,1.0620949,118910.0,118900.0,0.001]
[1752837823345,1.11802073,118910.0,118900.0,0.001]
[1752837823703,1.63917,118910.0,118900.0,0.001]
[1752837823935,1.63929,118910.0,118900.0,0.001]
[1752837824578,1.64760297,118910.0,118900.0,0.001]
[1752837824971,1.06856717,118910.0,118900.0,0.001]
[1752837825600,0.53823315,118910.0,118900.0,0.001]
[1752837825815,1.00149589,118910.0,118900.0,0.001]
[1752837827229,1.00145589,118910.0,118900.0,0.001]
[1752837832416,0.99318292,118910.0,118900.0,0.001]
[1752837833073,1.19506292,118910.0,118900.0,0.001]
[1752837834314,0.18504449,118890.0,118880.0,0.03924273]
[1752837834524,0.81755723,118890.0,118880.0,0.03924273]
[1752837834728,0.81755723,118890.0,118880.0,0.01454085]
[1752837835708,0.81755723,118890.0,118880.0,0.01554085]
[1752837836435,0.81755723,118890.0,118880.0,0.01654085]
[1752837838004,0.35429449,118890.0,118880.0,0.01654085]
[1752837838154,0.81755723,118890.0,118880.0,0.01654085]
[1752837839198,0.81755723,118890.0,118880.0,0.04209565]
[1752837839453,0.81755723,118890.0,118880.0,0.01654085]
[1752837840531,0.35429449,118890.0,118880.0,0.01654085]
[1752837840766,0.81755723,118890.0,118880.0,0.01654085]
[1752837841211,0.35429449,118890.0,118880.0,0.01654085]
[1752837841439,0.81755723,118890.0,118880.0,0.01654085]
[1752837842103,0.81755723,118890.0,118880.0,0.02512854]
[1752837843011,0.35429449,118890.0,118880.0,0.02512854]
[1752837843220,0.81755723,118890.0,118880.0,0.02512854]
[1752837844173,0.81755723,118890.0,118880.0,0.05043604]
[1752837844413,0.81755723,118890.0,118880.0,0.01654085]
[1752837846455,0.90306751,118890.0,118880.0,0.01654085]
[1752837847392,0.90310751,118890.0,118880.0,0.01654085]
[1752837848731,0.43984477,118890.0,118880.0,0.01654085]
[1752837848965,0.90310751,118890.0,118880.0,0.01654085]
[1752837849191,0.43976477,118890.0,118880.0,0.01654085]
[1752837849412,0.90302751,118890.0,118880.0,0.01654085]
[1752837863584,0.43976477,118890.0,118880.0,0.01654085]
[1752837863795,0.90302751,118890.0,118880.0,0.01654085]
[1752837865175,1.48213299,118890.0,118880.0,0.01654085]
[1752837869213,0.96094888,118890.0,118880.0,0.01654085]
[1752837869860,1.48213299,118890.0,118880.0,0.01654085]
[1752837870546,0.43976477,118890.0,118880.0,0.01654085]
[1752837870757,1.48213299,118890.0,118880.0,0.01654085]
[1752837870975,0.43976477,118890.0,118880.0,0.01654085]
[1752837871186,1.48213299,118890.0,118880.0,0.01654085]
[1752837876101,1.46693299,118890.0,118880.0,0.01654085]
[1752837877072,0.42456477,118890.0,118880.0,0.01654085]
[1752837877287,1.46693299,118890.0,118880.0,0.01654085]
[1752837881237,1.45163299,118890.0,118880.0,0.01654085]
[1752837884684,0.40926477,118890.0,118880.0,0.01654085]
[1752837884884,1.45163299,118890.0,118880.0,0.01654085]
[1752837885048,0.40926477,118890.0,118880.0,0.01654085]
[1752837885259,0.93044888,118890.0,118880.0,0.01654085]
[1752837885698,1.45163299,118890.0,118880.0,0.01654085]
[1752837886745,0.40926477,118890.0,118880.0,0.01654085]
[1752837887181,1.45163299,118890.0,118880.0,0.01654085]
[1752837888219,0.93044888,118890.0,118880.0,0.01654085]
[1752837889556,0.40926477,118890.0,118880.0,0.01654085]
[1752837889753,0.93044888,118890.0,118880.0,0.01654085]
[1752837890211,1.45163299,118890.0,118880.0,0.01654085]
[1752837890614,0.40926477,118890.0,118880.0,0.01654085]
[1752837890859,1.45163299,118890.0,118880.0,0.01654085]
[1752837891995,0.93044888,118890.0,118880.0,0.01654085]
[1752837901358,0.79379888,118890.0,118880.0,0.01863085]
[1752837901621,0.8402886,118890.0,118880.0,0.03753085]
[1752837902106,0.18508449,118890.0,118880.0,0.23919119]
[1752837902359,0.31708477,118890.0,118880.0,0.05413085]
[1752837902585,0.83826888,118890.0,118880.0,0.22236772]
[1752837902809,0.83826888,118890.0,118880.0,0.23077949]
[1752837903058,0.83826888,118890.0,118880.0,0.05413085]
[1752837903315,0.82985789,118890.0,118880.0,0.05413085]
[1752837909457,0.30867378,118890.0,118880.0,0.05413085]
[1752837909667,0.82985789,118890.0,118880.0,0.05413085]
[1752837911271,0.30867378,118890.0,118880.0,0.05413085]
[1752837911488,0.82985789,118890.0,118880.0,0.05413085]
[1752837911971,0.83189789,118890.0,118880.0,0.05413085]
[1752837912183,0.83189789,118890.0,118880.0,0.02173085]
[1752837913074,0.31071378,118890.0,118880.0,0.02173085]
[1752837913296,0.83189789,118890.0,118880.0,0.01863085]
[1752837913508,0.31071378,118890.0,118880.0,0.01863085]
[1752837913721,0.83189789,118890.0,118880.0,0.01863085]
[1752837917017,0.31071378,118890.0,118880.0,0.01863085]
[1752837917255,0.83189789,118890.0,118880.0,0.01863085]
[1752837920596,0.31071378,118890.0,118880.0,0.01863085]
[1752837920807,0.83189789,118890.0,118880.0,0.01863085]
[1752837921981,0.83494789,118890.0,118880.0,0.01863085]
[1752837923572,0.83189789,118890.0,118880.0,0.01863085]
[1752837926316,0.87631469,118890.0,118880.0,0.01863085]
[1752837926560,0.35513058,118890.0,118880.0,0.01863085]
[1752837926930,0.83189789,118890.0,118880.0,0.01863085]
[1752837927547,0.31071378,118890.0,118880.0,0.01863085]
[1752837927774,0.83189789,118890.0,118880.0,0.01863085]
[1752837928194,1.47324228,118890.0,118880.0,0.01654085]
[1752837930330,0.43087406,118890.0,118880.0,0.01654085]
[1752837930504,1.47324228,118890.0,118880.0,0.01654085]
[1752837931048,1.51070246,118890.0,118880.0,0.01654085]
[1752837931733,0.98951835,118890.0,118880.0,0.01654085]
[1752837931935,1.47324228,118890.0,118880.0,0.01654085]
[1752837934737,0.95205817,118890.0,118880.0,0.01654085]
[1752837936142,0.80475817,118890.0,118880.0,0.01654085]
[1752837936345,0.93663817,118890.0,118880.0,0.01654085]
[1752837936892,0.92033817,118890.0,118880.0,0.01654085]
[1752837937496,0.83177789,118890.0,118880.0,0.05298085]
[1752837937709,0.31059378,118890.0,118880.0,0.05298085]
[1752837937932,0.82973789,118890.0,118880.0,0.05298085]
[1752837938350,0.83180789,118890.0,118880.0,0.05298085]
[1752837938790,0.83180789,118890.0,118880.0,0.02158085]
[1752837939198,0.83180789,118890.0,118880.0,0.01863085]
[1752837940041,0.83485789,118890.0,118880.0,0.01863085]
[1752837940471,0.83485789,118890.0,118880.0,0.01654085]
[1752837944085,0.83485789,118890.0,118880.0,0.01863085]
[1752837946344,0.31367378,118890.0,118880.0,0.01863085]
[1752837946545,0.83485789,118890.0,118880.0,0.01863085]
[1752837947330,0.30855378,118890.0,118880.0,0.05438085]
[1752837947535,0.82973789,118890.0,118880.0,0.05438085]
[1752837948161,0.82969789,118890.0,118880.0,0.05438085]
[1752837949189,0.30851378,118890.0,118880.0,0.05438085]
[1752837949391,0.82969789,118890.0,118880.0,0.05438085]
[1752837950218,0.69785789,118890.0,118880.0,0.05438085]
[1752837950423,0.82969789,118890.0,118880.0,0.05438085]
[1752837950600,0.83176789,118890.0,118880.0,0.02158085]
[1752837951236,0.31058378,118890.0,118880.0,0.02158085]
[1752837951463,0.83176789,118890.0,118880.0,0.02158085]
[1752837952440,0.31058378,118890.0,118880.0,0.02158085]
[1752837952635,0.83176789,118890.0,118880.0,0.02158085]
[1752837952782,0.69992789,118890.0,118880.0,0.02158085]
[1752837952987,0.83172789,118890.0,118880.0,0.02158085]
[1752837953202,0.69992789,118890.0,118880.0,0.02158085]
[1752837953427,0.83172789,118890.0,118880.0,0.02158085]
[1752837953611,0.83172789,118890.0,118880.0,0.18981772]
[1752837953815,0.83172789,118890.0,118880.0,0.02158085]
[1752837954013,0.83172789,118890.0,118880.0,0.18981772]
[1752837954207,0.31054378,118890.0,118880.0,0.19822956]
[1752837954453,0.32529562,118890.0,118880.0,0.75892537]
[1752837954636,0.33370626,118890.0,118880.0,0.767337]
[1752837955035,0.33370626,118890.0,118880.0,0.77574856]
[1752837955253,0.1654834,118890.0,118880.0,0.78415955]
[1752837955427,0.14866142,118890.0,118880.0,0.78415955]
[1752837955731,0.14866135,118890.0,118880.0,1.12415955]
[1752837956825,0.14025057,118890.0,118880.0,1.12415955]
[1752837957092,0.13184,118890.0,118880.0,1.12415955]
[1752837958130,0.13184,118890.0,118880.0,1.20966983]
[1752837962316,4e-05,118890.0,118880.0,1.73085394]
[1752837962524,0.1318,118890.0,118880.0,1.73085394]
[1752837963142,0.1318,118890.0,118880.0,1.72885394]
[1752837963592,0.1318,118890.0,118880.0,1.73285394]
[1752837964212,0.1318,118890.0,118880.0,1.73585394]
[1752837967525,0.1318,118890.0,118880.0,1.73579161]
[1752837968806,0.1318,118890.0,118880.0,1.76078846]
[1752837969006,0.1318,118890.0,118880.0,1.23960435]
[1752837969980,0.1318,118890.0,118880.0,1.76078846]
[1752837970386,0.1318,118890.0,118880.0,0.71842024]
[1752837970787,0.1318,118890.0,118880.0,1.76078846]
[1752837985341,4e-05,118890.0,118880.0,1.81078846]
[1752837985557,0.13168,118890.0,118880.0,1.81078846]
[1752837986436,0.13168,118890.0,118880.0,2.51361257]
[1752837986437,4e-05,118890.0,118880.0,2.51361257]
[1752837986658,0.13433662,118910.0,118900.0,0.23997984]
[1752837986838,0.00269662,118910.0,118900.0,1.36785834]
[1752837987062,0.00269662,118910.0,118900.0,1.37294834]
[1752837989495,0.00269662,118910.0,118900.0,1.37394834]
[1752837989847,0.00269662,118910.0,118900.0,1.84558834]
[1752837991042,0.00269662,118910.0,118900.0,1.89558834]
[1752837991204,0.00469662,118910.0,118900.0,1.89558834]
[1752837993195,0.00469662,118910.0,118900.0,1.94558834]
[1752837993921,0.00469662,118910.0,118900.0,1.94458834]
[1752837994143,0.00269662,118910.0,118900.0,1.94458834]
[1752837994379,0.00269662,118910.0,118900.0,1.94758834]
[1752837995032,0.00269662,118910.0,118900.0,0.90522012]
[1752837995256,0.00269662,118910.0,118900.0,1.94758834]
[1752837995462,0.00269662,118910.0,118900.0,1.94558834]
[1752837995892,0.00269662,118910.0,118900.0,1.94758834]
[1752838001603,0.00269662,118910.0,118900.0,1.73394834]
[1752838001820,0.23318892,118910.0,118900.0,0.08851028]
[1752838002015,0.22478013,118910.0,118900.0,0.60969439]
[1752838002654,0.21637063,118910.0,118900.0,0.62423524]
[1752838002854,0.21637063,118910.0,118900.0,0.60969439]
[1752838003095,0.21637063,118910.0,118900.0,0.08851028]
[1752838003324,0.21637063,118910.0,118900.0,0.62423524]
[1752838003573,0.21637063,118910.0,118900.0,0.79244381]
[1752838003828,0.21637063,118910.0,118900.0,0.80085409]
[1752838004080,0.21637063,118910.0,118900.0,0.80926423]
[1752838004319,0.21637063,118910.0,118900.0,0.8092643]
[1752838004826,0.21637063,118910.0,118900.0,0.81767437]
[1752838005107,0.21637063,118910.0,118900.0,0.75937788]
[1752838006959,0.21637063,118910.0,118900.0,0.76778788]
[1752838007216,0.21637063,118910.0,118900.0,0.28808019]
[1752838007471,0.21637063,118910.0,118900.0,0.75096781]
[1752838008476,0.21637063,118910.0,118900.0,0.76778788]
[1752838009502,0.21637063,118910.0,118900.0,0.75937788]
[1752838011370,0.21637063,118910.0,118900.0,0.75096781]
[1752838011854,0.20796105,118910.0,118900.0,0.75096795]
[1752838012054,0.20796105,118910.0,118900.0,0.75937802]
[1752838012212,0.20796105,118910.0,118900.0,0.75096795]
[1752838012409,0.20796105,118910.0,118900.0,0.75937809]
[1752838012615,0.20796105,118910.0,118900.0,0.76678816]
[1752838012855,0.21637063,118910.0,118900.0,0.77319816]
[1752838013071,0.22477999,118910.0,118900.0,0.77319767]
[1752838013297,0.05658556,118910.0,118900.0,0.77319767]
[1752838013500,0.05658556,118910.0,118900.0,0.77419767]
[1752838014660,0.06499521,118910.0,118900.0,0.77419767]
[1752838015011,0.24159936,118910.0,118900.0,0.77419767]
[1752838015636,0.24159936,118910.0,118900.0,0.74896795]
[1752838016069,0.24159936,118910.0,118900.0,0.75737802]
[1752838016392,0.23319,118910.0,118900.0,0.74896795]
[1752838016909,0.23319,118910.0,118900.0,0.75737802]
[1752838017125,0.23319,118910.0,118900.0,0.76578802]
[1752838017805,0.05658585,118910.0,118900.0,0.77419795]
[1752838018990,0.04817598,118910.0,118900.0,0.77419795]
[1752838019214,0.06499463,118910.0,118900.0,0.77419795]
[1752838019951,0.05658513,118910.0,118900.0,0.77419795]
[1752838020165,0.00269662,118910.0,118900.0,0.65634033]
[1752838020383,0.13417662,118910.0,118900.0,1.15112795]
[1752838020813,0.00269662,118910.0,118900.0,1.15112795]
[1752838021017,0.13417662,118910.0,118900.0,1.15112795]
[1752838023142,0.13417662,118910.0,118900.0,0.68824033]
[1752838023372,0.13417662,118910.0,118900.0,1.15112795]
[1752838026087,0.00269662,118910.0,118900.0,1.15112795]
[1752838026302,0.00269662,118910.0,118900.0,1.79545557]
[1752838026520,0.00269662,118910.0,118900.0,1.84545557]
[1752838026764,0.00269662,118910.0,118900.0,1.79545557]
[1752838026983,0.00269662,118910.0,118900.0,1.84545557]
[1752838027210,0.00269662,118910.0,118900.0,1.38256795]
[1752838027664,0.00269662,118910.0,118900.0,0.91868033]
[1752838027888,0.00269662,118910.0,118900.0,1.38456795]
[1752838028114,0.00269662,118910.0,118900.0,0.92168033]
[1752838028337,0.00269662,118910.0,118900.0,1.38456795]
[1752838029237,0.00269662,118910.0,118900.0,1.38856795]
[1752838031248,0.00269662,118910.0,118900.0,1.33856795]
[1752838032078,0.00273662,118910.0,118900.0,1.33856795]
[1752838032324,0.00273662,118910.0,118900.0,1.36436593]
[1752838035490,0.0195,118930.0,118920.0,1.01083493]
[1752838035703,0.02149,118930.0,118920.0,1.23045521]
[1752838035927,0.0130836,118930.0,118920.0,1.23045521]
[1752838036171,0.02766703,118940.0,118930.0,0.20793105]
[1752838036376,0.04647144,118940.0,118930.0,0.67081867]
[1752838037622,0.04647144,118940.0,118930.0,0.20793105]
[1752838037884,0.04647144,118940.0,118930.0,0.67081867]
[1752838038385,0.04647144,118940.0,118930.0,0.67181867]
[1752838038636,0.05487889,118940.0,118930.0,0.67181867]
[1752838038886,0.07097889,118940.0,118930.0,0.67181867]
[1752838039372,0.07938649,118940.0,118930.0,0.66341086]
[1752838039637,0.22231705,118940.0,118930.0,0.48683677]
[1752838039891,0.22231705,118940.0,118930.0,0.03235738]
[1752838040168,0.22231705,118940.0,118930.0,0.50575523]
[1752838040431,0.22231705,118940.0,118930.0,0.6718193]
[1752838040688,0.22231705,118940.0,118930.0,0.68022739]
[1752838041105,0.22231705,118940.0,118930.0,0.68863541]
[1752838041823,0.22231705,118940.0,118930.0,0.68022739]
[1752838042278,0.22235705,118940.0,118930.0,0.68022739]
[1752838042518,0.22235705,118940.0,118930.0,0.01554085]
[1752838042745,0.22235705,118940.0,118930.0,0.001]
[1752838043172,0.22235705,118940.0,118930.0,0.01554085]
[1752838049879,0.77075495,118940.0,118930.0,0.001]
[1752838050838,0.2080743,118930.0,118920.0,0.01454085]
[1752838051059,0.3418443,118930.0,118920.0,0.01454085]
[1752838051270,0.3448543,118930.0,118920.0,0.01454085]
[1752838051682,0.2131343,118930.0,118920.0,0.19113014]
[1752838051888,0.35330239,118930.0,118920.0,0.20794795]
[1752838052098,0.35430239,118930.0,118920.0,0.19953908]
[1752838052511,0.33748614,118930.0,118920.0,0.01454085]
[1752838053176,0.33948614,118930.0,118920.0,0.01454085]
[1752838057099,0.33948614,118930.0,118910.0,0.34]
[1752838057100,0.19288915,118920.0,118910.0,0.34]
[1752838057357,0.21133915,118920.0,118910.0,0.35454085]
[1752838057578,0.21434915,118920.0,118910.0,0.01454085]
[1752838058212,0.20830401,118910.0,118900.0,0.35144471]
[1752838058420,0.34203401,118910.0,118900.0,0.35144471]
[1752838058626,0.34504401,118910.0,118900.0,0.36598556]